[Event "Titled Tuesday Blitz February 21 Late 2023"]
[White "Korchmar, Vasiliy"]
[Black "Krstulovic, Alex"]
[WhiteFideId "24131750"]
[BlackFideId "760056"]
[WhiteElo "2438"]
[BlackElo "2428"]
[Result "1-0"]
[Round "03"]
[TimeControl "180+2"]
[Date "2023.02.21"]
[WhiteClock "0:00:07"]
[BlackClock "0:00:01"]

1. e4 {[%clk 0:03:00]}  c5 {[%clk 0:02:21]} 2. Nf3 {[%clk 0:02:58]}  Nc6 {[%clk 0:02:21]} 3. d4 {[%clk 0:02:58]}  cxd4 {[%clk 0:02:22]} 4. Nxd4 {[%clk 0:02:59]}  Nf6 {[%clk 0:02:23]} 5. Nc3 {[%clk 0:02:59]}  e5 {[%clk 0:02:23]} 6. Ndb5 {[%clk 0:02:59]}  d6 {[%clk 0:02:23]} 7. Nd5 {[%clk 0:02:59]}  Nxd5 {[%clk 0:02:21]} 8. exd5 {[%clk 0:03:00]}  Nb8 {[%clk 0:02:21]} 9. a4 {[%clk 0:03:00]}  Be7 {[%clk 0:02:21]} 10. Be2 {[%clk 0:03:00]}  O-O {[%clk 0:02:21]} 11. O-O {[%clk 0:03:01]}  Nd7 {[%clk 0:02:20]} 12. Kh1 {[%clk 0:02:56]}  a6 {[%clk 0:02:19]} 13. Na3 {[%clk 0:02:56]}  f5 {[%clk 0:02:19]} 14. f4 {[%clk 0:02:57]}  Rb8 {[%clk 0:02:17]} 15. Nc4 {[%clk 0:02:56]}  b5 {[%clk 0:02:16]} 16. axb5 {[%clk 0:02:57]}  axb5 {[%clk 0:02:15]} 17. Na5 {[%clk 0:02:57]}  Bb7 {[%clk 0:02:14]} 18. Bxb5 {[%clk 0:02:45]}  Nc5 {[%clk 0:02:00]} 19. fxe5 {[%clk 0:02:38]}  dxe5 {[%clk 0:02:00]} 20. Nc6 {[%clk 0:02:31]}  Bxc6 {[%clk 0:02:00]} 21. Bxc6 {[%clk 0:02:32]}  Bd6 {[%clk 0:02:00]} 22. Qh5 {[%clk 0:01:44]}  g6 {[%clk 0:01:50]} 23. Qh6 {[%clk 0:01:42]}  Rf7 {[%clk 0:01:40]} 24. Bg5 {[%clk 0:01:30]}  Qc7 {[%clk 0:01:33]} 25. b3 {[%clk 0:01:04]}  Ne4 {[%clk 0:01:30]} 26. Be3 {[%clk 0:01:03]}  Bf8 {[%clk 0:01:18]} 27. Qh3 {[%clk 0:01:03]}  f4 {[%clk 0:01:15]} 28. Ra7 {[%clk 0:00:55]}  fxe3 {[%clk 0:00:48]} 29. Rxf7 {[%clk 0:00:55]}  Nf2+ {[%clk 0:00:47]} 30. Rxf2 {[%clk 0:00:53]}  Qxa7 {[%clk 0:00:42]} 31. Rf1 {[%clk 0:00:32]}  Qe7 {[%clk 0:00:28]} 32. Qxe3 {[%clk 0:00:30]}  Qd6 {[%clk 0:00:27]} 33. Qf3 {[%clk 0:00:29]}  Bg7 {[%clk 0:00:25]} 34. Qf7+ {[%clk 0:00:26]}  Kh8 {[%clk 0:00:25]} 35. Qe6 {[%clk 0:00:27]}  Qc5 {[%clk 0:00:23]} 36. c4 {[%clk 0:00:22]}  Rf8 {[%clk 0:00:16]} 37. Rxf8+ {[%clk 0:00:17]}  Qxf8 {[%clk 0:00:17]} 38. Qe8 {[%clk 0:00:17]}  Qxe8 {[%clk 0:00:15]} 39. Bxe8 {[%clk 0:00:18]}  e4 {[%clk 0:00:14]} 40. Kg1 {[%clk 0:00:17]}  Bd4+ {[%clk 0:00:14]} 41. Kf1 {[%clk 0:00:17]}  Bc5 {[%clk 0:00:15]} 42. Ke2 {[%clk 0:00:14]}  Kg7 {[%clk 0:00:15]} 43. Bd7 {[%clk 0:00:12]}  Kf6 {[%clk 0:00:14]} 44. Kd2 {[%clk 0:00:10]}  Ke5 {[%clk 0:00:13]} 45. Kc3 {[%clk 0:00:10]}  h5 {[%clk 0:00:11]} 46. Be8 {[%clk 0:00:07]}  Bd4+ {[%clk 0:00:07]} 47. Kd2 {[%clk 0:00:07]}  g5 {[%clk 0:00:04]} 48. Bxh5 {[%clk 0:00:06]}  Bc5 {[%clk 0:00:05]} 49. Kc3 {[%clk 0:00:05]}  Bd4+ {[%clk 0:00:05]} 50. Kb4 {[%clk 0:00:06]}  Kd6 {[%clk 0:00:05]} 51. Kb5 {[%clk 0:00:06]}  Ba7 {[%clk 0:00:03]} 52. b4 {[%clk 0:00:06]}  Bd4 {[%clk 0:00:03]} 53. Be2 {[%clk 0:00:06]}  Be3 {[%clk 0:00:02]} 54. h3 {[%clk 0:00:07]}  Bf2 {[%clk 0:00:02]} 55. Bd1 {[%clk 0:00:06]}  Bg1 {[%clk 0:00:01]} 56. Bb3 {[%clk 0:00:06]}  Bd4 {[%clk 0:00:01]} 57. c5+ {[%clk 0:00:07]}  Kc7 {[%clk 0:00:01]} 58. Bc4 {[%clk 0:00:07]} 1-0


[Site "https://www.chess.com"]

[Event "Titled Tuesday Blitz February 21 Late 2023"]
[White "Kochetov, Andrey"]
[Black "Msellek, Ilyass"]
[WhiteFideId "24130532"]
[BlackFideId "675938"]
[WhiteElo "2165"]
[BlackElo "2420"]
[Result "0-1"]
[Round "03"]
[TimeControl "180+2"]
[Date "2023.02.21"]
[WhiteClock "0:00:03"]
[BlackClock "0:00:01"]

1. e4 {[%clk 0:02:58]}  c6 {[%clk 0:02:56]} 2. d4 {[%clk 0:02:56]}  d5 {[%clk 0:02:56]} 3. Nc3 {[%clk 0:02:56]}  dxe4 {[%clk 0:02:55]} 4. Nxe4 {[%clk 0:02:57]}  Nf6 {[%clk 0:02:55]} 5. Nxf6+ {[%clk 0:02:56]}  exf6 {[%clk 0:02:56]} 6. c3 {[%clk 0:02:56]}  Bd6 {[%clk 0:02:56]} 7. Bd3 {[%clk 0:02:53]}  O-O {[%clk 0:02:57]} 8. Ne2 {[%clk 0:02:53]}  Re8 {[%clk 0:02:58]} 9. O-O {[%clk 0:02:53]}  Nd7 {[%clk 0:02:26]} 10. f4 {[%clk 0:02:51]}  Rb8 {[%clk 0:02:09]} 11. Ng3 {[%clk 0:02:46]}  c5 {[%clk 0:02:09]} 12. d5 {[%clk 0:02:17]}  b5 {[%clk 0:01:53]} 13. Nh5 {[%clk 0:02:12]}  Bf8 {[%clk 0:01:51]} 14. Qf3 {[%clk 0:01:55]}  c4 {[%clk 0:01:48]} 15. Bc2 {[%clk 0:01:53]}  Nb6 {[%clk 0:01:44]} 16. Rd1 {[%clk 0:01:35]}  Bb7 {[%clk 0:01:35]} 17. Qh3 {[%clk 0:01:11]}  g6 {[%clk 0:01:34]} 18. Qh4 {[%clk 0:01:11]}  gxh5 {[%clk 0:01:24]} 19. Qxh5 {[%clk 0:01:11]}  f5 {[%clk 0:01:08]} 20. Bxf5 {[%clk 0:00:52]}  Bg7 {[%clk 0:01:08]} 21. Bxh7+ {[%clk 0:00:45]}  Kf8 {[%clk 0:01:07]} 22. f5 {[%clk 0:00:45]}  Nxd5 {[%clk 0:00:56]} 23. Bg5 {[%clk 0:00:42]}  Qb6+ {[%clk 0:00:54]} 24. Kh1 {[%clk 0:00:37]}  Ne3 {[%clk 0:00:46]} 25. Bxe3 {[%clk 0:00:17]}  Rxe3 {[%clk 0:00:45]} 26. Rd7 {[%clk 0:00:08]}  Bxg2+ {[%clk 0:00:44]} 27. Kxg2 {[%clk 0:00:06]}  Qc6+ {[%clk 0:00:45]} 28. Kf2 {[%clk 0:00:05]}  Qxd7 {[%clk 0:00:45]} 29. Kxe3 {[%clk 0:00:05]}  Re8+ {[%clk 0:00:46]} 30. Kf2 {[%clk 0:00:04]}  Qd2+ {[%clk 0:00:46]} 31. Kg1 {[%clk 0:00:05]}  Qe3+ {[%clk 0:00:41]} 32. Kh1 {[%clk 0:00:05]}  Qe4+ {[%clk 0:00:42]} 33. Kg1 {[%clk 0:00:05]}  Rd8 {[%clk 0:00:33]} 34. f6 {[%clk 0:00:05]}  Qe3+ {[%clk 0:00:31]} 35. Kh1 {[%clk 0:00:05]}  Bxf6 {[%clk 0:00:27]} 36. Rf1 {[%clk 0:00:06]}  Ke7 {[%clk 0:00:14]} 37. Qg4 {[%clk 0:00:04]}  Rd2 {[%clk 0:00:13]} 38. Be4 {[%clk 0:00:04]}  Be5 {[%clk 0:00:12]} 39. Bg2 {[%clk 0:00:04]}  Qe2 {[%clk 0:00:11]} 40. Qf5 {[%clk 0:00:03]}  Qxg2# {[%clk 0:00:01]} 0-1


[Site "https://www.chess.com"]

[Event "Titled Tuesday Blitz February 21 Late 2023"]
[White "Soham Kamotra"]
[Black "Mujumdar, Sameer"]
[WhiteFideId "46647490"]
[BlackFideId "2029707"]
[WhiteElo "2319"]
[BlackElo "1992"]
[Result "1-0"]
[Round "03"]
[TimeControl "180+2"]
[Date "2023.02.21"]
[WhiteClock "0:02:05"]
[BlackClock "0:01:53"]

1. Nf3 {[%clk 0:03:00]}  g6 {[%clk 0:02:59]} 2. g3 {[%clk 0:02:59]}  Bg7 {[%clk 0:03:00]} 3. Bg2 {[%clk 0:03:00]}  c5 {[%clk 0:03:00]} 4. O-O {[%clk 0:03:01]}  Nc6 {[%clk 0:03:00]} 5. c4 {[%clk 0:03:01]}  Nf6 {[%clk 0:02:59]} 6. Nc3 {[%clk 0:03:01]}  O-O {[%clk 0:02:58]} 7. d4 {[%clk 0:03:01]}  cxd4 {[%clk 0:02:59]} 8. Nxd4 {[%clk 0:03:02]}  d6 {[%clk 0:02:57]} 9. Nxc6 {[%clk 0:03:01]}  bxc6 {[%clk 0:02:57]} 10. Bxc6 {[%clk 0:03:02]}  Bh3 {[%clk 0:02:58]} 11. Bxa8 {[%clk 0:02:57]}  Qxa8 {[%clk 0:02:58]} 12. f3 {[%clk 0:02:58]}  Rc8 {[%clk 0:02:54]} 13. Qd3 {[%clk 0:02:55]}  Nd7 {[%clk 0:02:50]} 14. b3 {[%clk 0:02:51]}  Ne5 {[%clk 0:02:46]} 15. Qe3 {[%clk 0:02:18]}  d5 {[%clk 0:02:25]} 16. Nxd5 {[%clk 0:02:13]}  Qb7 {[%clk 0:02:21]} 17. Bb2 {[%clk 0:02:09]}  Nxc4 {[%clk 0:01:59]} 18. Nxe7+ {[%clk 0:02:07]}  Kf8 {[%clk 0:01:52]} 19. Bxg7+ {[%clk 0:02:06]}  Kxg7 {[%clk 0:01:53]} 20. Qd4+ {[%clk 0:02:05]} 1-0


[Site "https://www.chess.com"]

[Event "Titled Tuesday Blitz February 21 Late 2023"]
[White "Gascon Del Nogal, Jose Rafael"]
[Black "Rengifo Blancas, Renzo Jhonathan"]
[WhiteFideId "3902463"]
[BlackFideId "3807185"]
[WhiteElo "2459"]
[BlackElo "2131"]
[Result "1-0"]
[Round "03"]
[TimeControl "180+2"]
[Date "2023.02.21"]
[WhiteClock "0:00:10"]
[BlackClock "0:00:06"]

1. e4 {[%clk 0:03:00]}  e5 {[%clk 0:02:59]} 2. Nf3 {[%clk 0:03:00]}  Nc6 {[%clk 0:03:00]} 3. Bc4 {[%clk 0:03:00]}  Bc5 {[%clk 0:03:00]} 4. c3 {[%clk 0:02:59]}  Nf6 {[%clk 0:03:00]} 5. d3 {[%clk 0:02:58]}  a6 {[%clk 0:03:00]} 6. O-O {[%clk 0:02:50]}  O-O {[%clk 0:03:00]} 7. h3 {[%clk 0:02:48]}  Ba7 {[%clk 0:03:00]} 8. Nbd2 {[%clk 0:02:45]}  d5 {[%clk 0:02:43]} 9. exd5 {[%clk 0:02:44]}  Nxd5 {[%clk 0:02:43]} 10. Re1 {[%clk 0:02:43]}  Re8 {[%clk 0:02:43]} 11. d4 {[%clk 0:02:32]}  b5 {[%clk 0:02:35]} 12. Bb3 {[%clk 0:02:29]}  f6 {[%clk 0:02:15]} 13. dxe5 {[%clk 0:02:19]}  Nxe5 {[%clk 0:02:15]} 14. Nxe5 {[%clk 0:02:19]}  Rxe5 {[%clk 0:02:14]} 15. Rxe5 {[%clk 0:02:17]}  fxe5 {[%clk 0:02:15]} 16. Nf3 {[%clk 0:02:16]}  c6 {[%clk 0:02:09]} 17. Nxe5 {[%clk 0:02:15]}  Bb7 {[%clk 0:02:07]} 18. Be3 {[%clk 0:01:45]}  Bxe3 {[%clk 0:01:58]} 19. fxe3 {[%clk 0:01:44]}  Qg5 {[%clk 0:01:58]} 20. Qd4 {[%clk 0:01:35]}  Re8 {[%clk 0:01:57]} 21. Nxc6 {[%clk 0:01:15]}  Bxc6 {[%clk 0:01:43]} 22. e4 {[%clk 0:01:14]}  Rd8 {[%clk 0:01:19]} 23. Rd1 {[%clk 0:01:00]}  h6 {[%clk 0:01:01]} 24. exd5 {[%clk 0:00:44]}  Bd7 {[%clk 0:01:00]} 25. d6+ {[%clk 0:00:44]}  Kh8 {[%clk 0:01:00]} 26. Qd3 {[%clk 0:00:39]}  Re8 {[%clk 0:00:57]} 27. Bc2 {[%clk 0:00:38]}  Qe3+ {[%clk 0:00:48]} 28. Qxe3 {[%clk 0:00:37]}  Rxe3 {[%clk 0:00:49]} 29. Kf2 {[%clk 0:00:35]}  Re8 {[%clk 0:00:45]} 30. Re1 {[%clk 0:00:34]}  Rf8+ {[%clk 0:00:44]} 31. Kg3 {[%clk 0:00:32]}  Rd8 {[%clk 0:00:34]} 32. Re7 {[%clk 0:00:31]}  Bc6 {[%clk 0:00:21]} 33. Rc7 {[%clk 0:00:30]}  Bd5 {[%clk 0:00:19]} 34. b3 {[%clk 0:00:27]}  Rxd6 {[%clk 0:00:17]} 35. Rc8+ {[%clk 0:00:25]}  Bg8 {[%clk 0:00:18]} 36. c4 {[%clk 0:00:23]}  bxc4 {[%clk 0:00:18]} 37. bxc4 {[%clk 0:00:23]}  Rd2 {[%clk 0:00:12]} 38. Bb3 {[%clk 0:00:20]}  Kh7 {[%clk 0:00:12]} 39. Rc6 {[%clk 0:00:16]}  Rd3+ {[%clk 0:00:11]} 40. Kf4 {[%clk 0:00:16]}  a5 {[%clk 0:00:08]} 41. Bc2 {[%clk 0:00:15]}  g5+ {[%clk 0:00:06]} 42. Ke5 {[%clk 0:00:12]}  Kg7 {[%clk 0:00:05]} 43. Bxd3 {[%clk 0:00:12]}  g4 {[%clk 0:00:05]} 44. Rc7+ {[%clk 0:00:12]}  Kf8 {[%clk 0:00:05]} 45. Kf6 {[%clk 0:00:11]}  h5 {[%clk 0:00:06]} 46. Rc8# {[%clk 0:00:10]} 1-0


[Site "https://www.chess.com"]

[Event "Titled Tuesday Blitz February 21 Late 2023"]
[White "Jovic, Stanoje"]
[Black "Mustafayev, Farid"]
[WhiteFideId "905020"]
[BlackFideId "13408771"]
[WhiteElo "2075"]
[BlackElo "2316"]
[Result "0-1"]
[Round "03"]
[TimeControl "180+2"]
[Date "2023.02.21"]
[WhiteClock "0:00:06"]
[BlackClock "0:00:20"]

1. c4 {[%clk 0:03:00]}  Nf6 {[%clk 0:02:58]} 2. g3 {[%clk 0:03:01]}  g6 {[%clk 0:02:57]} 3. Bg2 {[%clk 0:03:01]}  Bg7 {[%clk 0:02:57]} 4. Nc3 {[%clk 0:03:01]}  O-O {[%clk 0:02:57]} 5. Nf3 {[%clk 0:03:01]}  d6 {[%clk 0:02:58]} 6. O-O {[%clk 0:03:01]}  Nc6 {[%clk 0:02:54]} 7. d3 {[%clk 0:03:00]}  Rb8 {[%clk 0:02:53]} 8. Rb1 {[%clk 0:03:00]}  a6 {[%clk 0:02:54]} 9. b4 {[%clk 0:03:00]}  b5 {[%clk 0:02:53]} 10. cxb5 {[%clk 0:03:00]}  axb5 {[%clk 0:02:54]} 11. Qc2 {[%clk 0:02:59]}  Bd7 {[%clk 0:02:52]} 12. h3 {[%clk 0:02:54]}  Qc8 {[%clk 0:02:50]} 13. Kh2 {[%clk 0:02:53]}  e5 {[%clk 0:02:27]} 14. Be3 {[%clk 0:02:49]}  Ne7 {[%clk 0:02:22]} 15. Rfc1 {[%clk 0:02:44]}  Nf5 {[%clk 0:02:18]} 16. Bg5 {[%clk 0:02:40]}  c6 {[%clk 0:02:15]} 17. Ne4 {[%clk 0:02:32]}  Nxe4 {[%clk 0:01:41]} 18. dxe4 {[%clk 0:02:31]}  h6 {[%clk 0:01:37]} 19. exf5 {[%clk 0:02:28]}  hxg5 {[%clk 0:01:37]} 20. fxg6 {[%clk 0:02:28]}  Bf5 {[%clk 0:01:36]} 21. gxf7+ {[%clk 0:02:22]}  Rxf7 {[%clk 0:01:36]} 22. e4 {[%clk 0:02:21]}  Bg6 {[%clk 0:01:28]} 23. Nxg5 {[%clk 0:02:16]}  Rf8 {[%clk 0:01:28]} 24. Qxc6 {[%clk 0:02:13]}  Qxc6 {[%clk 0:01:24]} 25. Rxc6 {[%clk 0:02:12]}  Rxf2 {[%clk 0:01:25]} 26. a4 {[%clk 0:01:58]}  bxa4 {[%clk 0:01:20]} 27. Kg1 {[%clk 0:01:52]}  Rd2 {[%clk 0:01:13]} 28. Rc4 {[%clk 0:01:25]}  a3 {[%clk 0:01:09]} 29. Ra1 {[%clk 0:01:17]}  a2 {[%clk 0:01:07]} 30. h4 {[%clk 0:01:09]}  Rb2 {[%clk 0:01:06]} 31. Bf1 {[%clk 0:01:07]}  Ra8 {[%clk 0:01:01]} 32. Rcc1 {[%clk 0:00:54]}  Rxb4 {[%clk 0:01:00]} 33. Bc4+ {[%clk 0:00:52]}  Kh8 {[%clk 0:00:46]} 34. Rxa2 {[%clk 0:00:50]}  Rc8 {[%clk 0:00:42]} 35. Rac2 {[%clk 0:00:49]}  Bh6 {[%clk 0:00:39]} 36. Bd5 {[%clk 0:00:44]}  Rxc2 {[%clk 0:00:38]} 37. Rxc2 {[%clk 0:00:43]}  Bxg5 {[%clk 0:00:38]} 38. hxg5 {[%clk 0:00:43]}  Bxe4 {[%clk 0:00:39]} 39. Rc8+ {[%clk 0:00:40]}  Kg7 {[%clk 0:00:39]} 40. Rg8+ {[%clk 0:00:31]}  Kh7 {[%clk 0:00:38]} 41. g6+ {[%clk 0:00:28]}  Bxg6 {[%clk 0:00:35]} 42. Rd8 {[%clk 0:00:27]}  Rb6 {[%clk 0:00:32]} 43. Rd7+ {[%clk 0:00:25]}  Kh6 {[%clk 0:00:32]} 44. Kf2 {[%clk 0:00:25]}  Kg5 {[%clk 0:00:32]} 45. Rg7 {[%clk 0:00:23]}  Kf6 {[%clk 0:00:32]} 46. Rd7 {[%clk 0:00:23]}  Bf5 {[%clk 0:00:32]} 47. Rd8 {[%clk 0:00:21]}  Ke7 {[%clk 0:00:31]} 48. Ra8 {[%clk 0:00:17]}  Rb5 {[%clk 0:00:31]} 49. Bf3 {[%clk 0:00:17]}  e4 {[%clk 0:00:29]} 50. Be2 {[%clk 0:00:16]}  Rb3 {[%clk 0:00:29]} 51. Ra5 {[%clk 0:00:14]}  Kf6 {[%clk 0:00:29]} 52. g4 {[%clk 0:00:11]}  Be6 {[%clk 0:00:28]} 53. g5+ {[%clk 0:00:12]}  Kg6 {[%clk 0:00:28]} 54. Ra6 {[%clk 0:00:11]}  Kxg5 {[%clk 0:00:19]} 55. Rxd6 {[%clk 0:00:11]}  Bf5 {[%clk 0:00:20]} 56. Rd1 {[%clk 0:00:07]}  Kf4 {[%clk 0:00:20]} 57. Rh1 {[%clk 0:00:06]}  e3+ {[%clk 0:00:19]} 58. Ke1 {[%clk 0:00:06]}  Rb1+ {[%clk 0:00:20]} 59. Bd1 {[%clk 0:00:06]}  Bg4 {[%clk 0:00:20]} 0-1


[Site "https://www.chess.com"]

[Event "Titled Tuesday Blitz February 21 Late 2023"]
[White "Kanakaris, Georgios"]
[Black "Miszler, Levente"]
[WhiteFideId "4209460"]
[BlackFideId "763276"]
[WhiteElo "2391"]
[BlackElo "2271"]
[Result "1/2-1/2"]
[Round "03"]
[TimeControl "180+2"]
[Date "2023.02.21"]
[WhiteClock "0:00:17"]
[BlackClock "0:00:10"]

1. e4 {[%clk 0:03:00]}  e6 {[%clk 0:02:59]} 2. Qe2 {[%clk 0:03:00]}  g6 {[%clk 0:02:54]} 3. Nf3 {[%clk 0:02:59]}  Bg7 {[%clk 0:02:54]} 4. g3 {[%clk 0:02:58]}  Ne7 {[%clk 0:02:54]} 5. Bg2 {[%clk 0:02:59]}  O-O {[%clk 0:02:55]} 6. O-O {[%clk 0:02:58]}  d5 {[%clk 0:02:56]} 7. d4 {[%clk 0:02:53]}  dxe4 {[%clk 0:02:55]} 8. Qxe4 {[%clk 0:02:54]}  Nf5 {[%clk 0:02:51]} 9. c3 {[%clk 0:02:52]}  Nc6 {[%clk 0:02:48]} 10. Na3 {[%clk 0:02:49]}  Nd6 {[%clk 0:02:47]} 11. Qe2 {[%clk 0:02:45]}  Re8 {[%clk 0:02:46]} 12. Ne5 {[%clk 0:02:42]}  Bd7 {[%clk 0:02:43]} 13. Nxc6 {[%clk 0:02:28]}  Bxc6 {[%clk 0:02:44]} 14. Bxc6 {[%clk 0:02:27]}  bxc6 {[%clk 0:02:45]} 15. Nc4 {[%clk 0:02:23]}  Nxc4 {[%clk 0:02:42]} 16. Qxc4 {[%clk 0:02:24]}  Qd5 {[%clk 0:02:43]} 17. Qe2 {[%clk 0:02:21]}  c5 {[%clk 0:02:42]} 18. dxc5 {[%clk 0:02:18]}  Qxc5 {[%clk 0:02:43]} 19. Be3 {[%clk 0:02:18]}  Qc6 {[%clk 0:02:42]} 20. Rfd1 {[%clk 0:02:10]}  a5 {[%clk 0:02:41]} 21. Rd3 {[%clk 0:02:03]}  Red8 {[%clk 0:02:39]} 22. Rad1 {[%clk 0:02:02]}  Rxd3 {[%clk 0:02:38]} 23. Qxd3 {[%clk 0:02:02]}  a4 {[%clk 0:02:38]} 24. Qd8+ {[%clk 0:01:42]}  Rxd8 {[%clk 0:01:44]} 25. Rxd8+ {[%clk 0:01:43]}  Bf8 {[%clk 0:01:42]} 26. Bh6 {[%clk 0:01:43]}  Qd6 {[%clk 0:01:27]} 27. Rxf8+ {[%clk 0:01:42]}  Qxf8 {[%clk 0:01:27]} 28. Bxf8 {[%clk 0:01:43]}  Kxf8 {[%clk 0:01:28]} 29. f4 {[%clk 0:01:43]}  Ke7 {[%clk 0:01:28]} 30. Kf2 {[%clk 0:01:43]}  Kd6 {[%clk 0:01:28]} 31. Ke3 {[%clk 0:01:42]}  e5 {[%clk 0:01:19]} 32. Ke4 {[%clk 0:01:34]}  f5+ {[%clk 0:01:18]} 33. Ke3 {[%clk 0:01:33]}  e4 {[%clk 0:01:16]} 34. b3 {[%clk 0:01:25]}  axb3 {[%clk 0:00:58]} 35. axb3 {[%clk 0:01:26]}  Kd5 {[%clk 0:00:55]} 36. h4 {[%clk 0:01:19]}  Kc5 {[%clk 0:00:53]} 37. Kd2 {[%clk 0:01:18]}  Kb5 {[%clk 0:00:51]} 38. Ke2 {[%clk 0:01:18]}  h6 {[%clk 0:00:33]} 39. Ke3 {[%clk 0:01:15]}  c5 {[%clk 0:00:30]} 40. Kd2 {[%clk 0:01:13]}  Kc6 {[%clk 0:00:25]} 41. Ke3 {[%clk 0:01:13]}  Kb5 {[%clk 0:00:25]} 42. g4 {[%clk 0:00:24]}  fxg4 {[%clk 0:00:25]} 43. h5 {[%clk 0:00:24]}  gxh5 {[%clk 0:00:24]} 44. f5 {[%clk 0:00:25]}  Kc6 {[%clk 0:00:24]} 45. b4 {[%clk 0:00:25]}  cxb4 {[%clk 0:00:21]} 46. cxb4 {[%clk 0:00:26]}  h4 {[%clk 0:00:17]} 47. b5+ {[%clk 0:00:25]}  Kd7 {[%clk 0:00:12]} 48. b6 {[%clk 0:00:23]}  h3 {[%clk 0:00:11]} 49. b7 {[%clk 0:00:22]}  Kc7 {[%clk 0:00:12]} 50. f6 {[%clk 0:00:21]}  h2 {[%clk 0:00:12]} 51. f7 {[%clk 0:00:21]}  h1=Q {[%clk 0:00:11]} 52. b8=Q+ {[%clk 0:00:21]}  Kxb8 {[%clk 0:00:12]} 53. f8=Q+ {[%clk 0:00:22]}  Kb7 {[%clk 0:00:12]} 54. Qe7+ {[%clk 0:00:20]}  Kc6 {[%clk 0:00:11]} 55. Qe6+ {[%clk 0:00:21]}  Kc5 {[%clk 0:00:10]} 56. Qe5+ {[%clk 0:00:20]}  Kc6 {[%clk 0:00:10]} 57. Qe6+ {[%clk 0:00:20]}  Kc7 {[%clk 0:00:10]} 58. Qe7+ {[%clk 0:00:19]}  Kb6 {[%clk 0:00:10]} 59. Qd6+ {[%clk 0:00:17]}  Kb7 {[%clk 0:00:09]} 60. Qd7+ {[%clk 0:00:17]}  Kb6 {[%clk 0:00:09]} 61. Qd6+ {[%clk 0:00:16]}  Kb7 {[%clk 0:00:10]} 62. Qd7+ {[%clk 0:00:17]}  Kb6 {[%clk 0:00:10]} 63. Qd6+ {[%clk 0:00:17]} 1/2-1/2


[Site "https://www.chess.com"]

[Event "Titled Tuesday Blitz February 21 Late 2023"]
[White "Zarnicki, Pablo"]
[Black "Davidson, Kevin"]
[WhiteFideId "100137"]
[BlackFideId "2056810"]
[WhiteElo "2514"]
[BlackElo "2154"]
[Result "1-0"]
[Round "03"]
[TimeControl "180+2"]
[Date "2023.02.21"]
[WhiteClock "0:00:20"]
[BlackClock "0:01:04"]

1. e4 {[%clk 0:02:36]}  c5 {[%clk 0:02:59]} 2. Nf3 {[%clk 0:02:35]}  d6 {[%clk 0:03:00]} 3. d4 {[%clk 0:02:34]}  cxd4 {[%clk 0:03:01]} 4. Nxd4 {[%clk 0:02:34]}  Nf6 {[%clk 0:03:01]} 5. Nc3 {[%clk 0:02:35]}  a6 {[%clk 0:03:02]} 6. h3 {[%clk 0:02:33]}  e6 {[%clk 0:03:02]} 7. g4 {[%clk 0:02:26]}  d5 {[%clk 0:03:02]} 8. Bg2 {[%clk 0:02:12]}  Nxe4 {[%clk 0:02:59]} 9. Nxe4 {[%clk 0:02:11]}  dxe4 {[%clk 0:03:00]} 10. Bxe4 {[%clk 0:02:07]}  e5 {[%clk 0:02:59]} 11. Nf3 {[%clk 0:01:34]}  Qxd1+ {[%clk 0:03:00]} 12. Kxd1 {[%clk 0:01:33]}  f6 {[%clk 0:02:29]} 13. Be3 {[%clk 0:01:27]}  Nc6 {[%clk 0:02:27]} 14. c3 {[%clk 0:01:20]}  Be6 {[%clk 0:02:26]} 15. Kc2 {[%clk 0:01:06]}  Be7 {[%clk 0:02:15]} 16. Rad1 {[%clk 0:01:02]}  Kf7 {[%clk 0:02:01]} 17. Kb1 {[%clk 0:00:55]}  h5 {[%clk 0:01:50]} 18. g5 {[%clk 0:00:36]}  h4 {[%clk 0:01:23]} 19. Rhg1 {[%clk 0:00:29]}  Rad8 {[%clk 0:01:14]} 20. gxf6 {[%clk 0:00:26]}  Bxf6 {[%clk 0:01:04]} 21. Bg6+ {[%clk 0:00:20]}  Ke7 {[%clk 0:01:04]} 22. Bc5+ {[%clk 0:00:20]} 1-0


[Site "https://www.chess.com"]

[Event "Titled Tuesday Blitz February 21 Late 2023"]
[White "Jimenez Jimenez, Leandro"]
[Black "Goroshkov, Maksym"]
[WhiteFideId "6415253"]
[BlackFideId "14142716"]
[WhiteElo "2146"]
[BlackElo "2287"]
[Result "0-1"]
[Round "03"]
[TimeControl "180+2"]
[Date "2023.02.21"]
[WhiteClock "0:00:02"]
[BlackClock "0:00:09"]

1. d4 {[%clk 0:03:00]}  Nf6 {[%clk 0:02:58]} 2. c4 {[%clk 0:03:00]}  e5 {[%clk 0:02:55]} 3. dxe5 {[%clk 0:03:01]}  Ng4 {[%clk 0:02:55]} 4. Bf4 {[%clk 0:03:00]}  Nc6 {[%clk 0:02:55]} 5. Nf3 {[%clk 0:03:00]}  Bb4+ {[%clk 0:02:56]} 6. Nbd2 {[%clk 0:03:00]}  Qe7 {[%clk 0:02:56]} 7. a3 {[%clk 0:03:01]}  Ngxe5 {[%clk 0:02:57]} 8. Nxe5 {[%clk 0:03:01]}  Nxe5 {[%clk 0:02:57]} 9. e3 {[%clk 0:03:02]}  Bxd2+ {[%clk 0:02:58]} 10. Qxd2 {[%clk 0:03:02]}  d6 {[%clk 0:02:59]} 11. Rc1 {[%clk 0:02:56]}  b6 {[%clk 0:02:59]} 12. c5 {[%clk 0:02:55]}  bxc5 {[%clk 0:02:58]} 13. b4 {[%clk 0:02:56]}  cxb4 {[%clk 0:02:58]} 14. Bb5+ {[%clk 0:02:55]}  Bd7 {[%clk 0:02:58]} 15. Rxc7 {[%clk 0:02:54]}  Rd8 {[%clk 0:02:46]} 16. O-O {[%clk 0:02:33]}  O-O {[%clk 0:02:17]} 17. Bxd7 {[%clk 0:02:04]}  bxa3 {[%clk 0:01:58]} 18. Rfc1 {[%clk 0:01:33]}  Nxd7 {[%clk 0:01:41]} 19. Bxd6 {[%clk 0:01:32]}  Qf6 {[%clk 0:01:20]} 20. Bxf8 {[%clk 0:01:31]}  Nxf8 {[%clk 0:01:20]} 21. Qc3 {[%clk 0:01:05]}  Qb6 {[%clk 0:01:01]} 22. h3 {[%clk 0:00:56]}  a2 {[%clk 0:01:00]} 23. Qc4 {[%clk 0:00:52]}  Ne6 {[%clk 0:00:38]} 24. Rc8 {[%clk 0:00:37]}  Qb2 {[%clk 0:00:06]} 25. Rxd8+ {[%clk 0:00:18]}  Nxd8 {[%clk 0:00:07]} 26. Qc8 {[%clk 0:00:15]}  Qd2 {[%clk 0:00:07]} 27. Kh2 {[%clk 0:00:08]}  h6 {[%clk 0:00:07]} 28. Ra1 {[%clk 0:00:05]}  Qd5 {[%clk 0:00:06]} 29. Qc2 {[%clk 0:00:04]}  Qe5+ {[%clk 0:00:06]} 30. f4 {[%clk 0:00:02]}  Qxa1 {[%clk 0:00:07]} 31. Qd3 {[%clk 0:00:02]}  Qf6 {[%clk 0:00:05]} 32. g4 {[%clk 0:00:02]}  a1=Q {[%clk 0:00:06]} 33. g5 {[%clk 0:00:03]}  Qfb2+ {[%clk 0:00:06]} 34. Kg3 {[%clk 0:00:03]}  Qg1+ {[%clk 0:00:06]} 35. Kh4 {[%clk 0:00:01]}  Qbf2+ {[%clk 0:00:07]} 36. Kh5 {[%clk 0:00:02]}  Qf3+ {[%clk 0:00:08]} 37. Kh4 {[%clk 0:00:02]}  Qfg3+ {[%clk 0:00:08]} 38. Kh5 {[%clk 0:00:02]}  Qxh3# {[%clk 0:00:09]} 0-1


[Site "https://www.chess.com"]